bitfinex/quotes_BTCUSD_20250124
["timestamp","ask_amount","ask_price","bid_price","bid_amount"]
[1737682676895,2.00150997,103460.0,103450.0,0.20478682]
[1737682678422,2.02450997,103460.0,103450.0,0.20478682]
[1737682680149,2.02450997,103460.0,103450.0,0.27998682]
[1737682680563,1.89390984,103460.0,103450.0,0.27998682]
[1737682680748,1.90416268,103460.0,103450.0,0.27998682]
[1737682681505,2.00150997,103460.0,103450.0,0.27998682]
[1737682681718,0.62185726,103460.0,103450.0,0.00528682]
[1737682681915,0.52450997,103460.0,103450.0,0.00528682]
[1737682682552,0.6321101,103460.0,103450.0,0.00528682]
[1737682682753,0.52450997,103460.0,103450.0,0.00528682]
[1737682683601,0.52450997,103460.0,103450.0,0.00428682]
[1737682683811,0.62441964,103460.0,103450.0,0.00028682]
[1737682684016,0.62641964,103460.0,103450.0,0.00028682]
[1737682684855,0.60320997,103460.0,103450.0,0.00028682]
[1737682686978,0.7108101,103460.0,103450.0,0.00028682]
[1737682687213,0.74501977,103460.0,103450.0,0.00028682]
[1737682687660,0.76501977,103460.0,103450.0,0.00028682]
[1737682688260,0.7886101,103460.0,103450.0,0.00028682]
[1737682688464,0.81281977,103460.0,103450.0,0.00028682]
[1737682689679,0.60320997,103460.0,103450.0,0.00028682]
[1737682689883,0.62320997,103460.0,103450.0,0.00028682]
[1737682691319,0.60320997,103460.0,103450.0,0.00028682]
[1737682691482,0.7408101,103460.0,103450.0,0.00028682]
[1737682691895,0.63320997,103460.0,103450.0,0.00028682]
[1737682692543,0.7408101,103460.0,103450.0,0.00028682]
[1737682693191,0.119665,103450.0,103440.0,0.00308683]
[1737682693408,0.32461242,103450.0,103440.0,0.00313643]
[1737682693613,0.65191242,103450.0,103440.0,0.00313643]
[1737682694593,0.85191242,103450.0,103440.0,0.00313643]
[1737682694798,0.85191242,103450.0,103440.0,0.00413643]
[1737682695754,0.52461242,103450.0,103440.0,0.00413643]
[1737682695990,0.54461242,103450.0,103440.0,0.00413643]
[1737682696581,0.54461242,103450.0,103440.0,0.00327883]
[1737682696791,0.54761242,103450.0,103440.0,0.00327883]
[1737682697368,0.55161242,103450.0,103440.0,0.00327883]
[1737682697581,0.54661242,103450.0,103440.0,0.00327883]
[1737682697956,0.55161242,103450.0,103440.0,0.00327883]
[1737682698144,0.59030242,103450.0,103440.0,0.00327883]
[1737682698758,0.69790255,103450.0,103440.0,0.00327883]
[1737682699432,0.59030242,103450.0,103440.0,0.00327883]
[1737682699669,0.61006903,103450.0,103440.0,0.00327883]
[1737682699864,0.71766916,103450.0,103440.0,0.00327883]
[1737682700277,0.81501645,103450.0,103440.0,0.00327883]
[1737682700674,0.72766916,103450.0,103440.0,0.00327883]
[1737682702215,0.73722968,103450.0,103440.0,0.00327883]
[1737682702964,0.62962955,103450.0,103440.0,0.00327883]
[1737682703157,0.73722968,103450.0,103440.0,0.00327883]
[1737682703769,0.73712787,103450.0,103440.0,0.00327883]
[1737682707720,0.70712787,103450.0,103440.0,0.00327883]
[1737682707921,0.61952774,103450.0,103440.0,0.00327883]
[1737682709148,0.61982678,103450.0,103440.0,0.00327883]
[1737682710028,0.8147742,103450.0,103440.0,0.00327883]
[1737682710241,0.8262542,103450.0,103440.0,0.00327883]
[1737682710422,0.9125542,103450.0,103440.0,0.00327883]
[1737682710628,0.80520691,103450.0,103440.0,0.00327883]
[1737682710832,0.81520691,103450.0,103440.0,0.00327883]
[1737682711260,0.73890691,103450.0,103440.0,0.00327883]
[1737682711675,0.61982678,103450.0,103440.0,0.00327883]
[1737682711834,0.72742691,103450.0,103440.0,0.00327883]
[1737682712453,0.73742691,103450.0,103440.0,0.00327883]
[1737682714001,0.72742691,103450.0,103440.0,0.00327883]
[1737682717594,0.70742691,103450.0,103440.0,0.00327883]
[1737682717806,0.59982678,103450.0,103440.0,0.00327883]
[1737682718208,0.61982678,103450.0,103440.0,0.00327883]
[1737682718565,0.72742691,103450.0,103440.0,0.00327883]
[1737682719268,0.61982678,103450.0,103440.0,0.00327883]
[1737682719444,0.59982678,103450.0,103440.0,0.00327883]
[1737682719656,0.57692859,103450.0,103440.0,0.00327883]
[1737682720154,0.59992859,103450.0,103440.0,0.08227883]
[1737682722215,0.58992859,103450.0,103440.0,0.08227883]
[1737682724467,0.58992859,103450.0,103440.0,0.17895283]
[1737682724680,0.58992859,103450.0,103440.0,0.08227883]
[1737682729831,0.58492859,103450.0,103440.0,0.08227883]
[1737682730029,0.58692859,103450.0,103440.0,0.08227883]
[1737682730613,0.58492859,103450.0,103440.0,0.08227883]
[1737682731539,0.58592859,103450.0,103440.0,0.17895283]
[1737682732881,0.49926359,103450.0,103440.0,0.17895283]
[1737682733083,0.35297346,103450.0,103440.0,0.17895283]
[1737682733300,0.34341294,103450.0,103440.0,0.22765283]
[1737682734664,0.20329904,103450.0,103440.0,0.22765283]
[1737682734869,1.70329904,103450.0,103440.0,0.22765283]
[1737682735896,0.20329904,103450.0,103440.0,0.22765283]
[1737682738196,0.20329904,103450.0,103440.0,0.2373155]
[1737682740045,0.20229904,103450.0,103440.0,0.2373155]
[1737682740310,0.20229904,103450.0,103440.0,0.2383155]
[1737682741003,0.20029904,103450.0,103440.0,0.2383155]
[1737682741451,0.20029904,103450.0,103440.0,0.2423155]
[1737682742493,0.20029904,103450.0,103440.0,0.28205959]
[1737682742779,0.00029904,103450.0,103440.0,0.28205959]
[1737682747053,0.00029904,103450.0,103440.0,0.37940688]
[1737682748421,0.00029904,103450.0,103440.0,0.34931619]
[1737682748857,0.00029904,103450.0,103440.0,0.3793751]
[1737682749433,0.00029904,103450.0,103440.0,0.34931619]
[1737682750401,0.00029904,103450.0,103440.0,0.38937207]
[1737682750617,4e-08,103450.0,103440.0,0.38937207]
[1737682750803,4e-08,103450.0,103440.0,0.37937207]
[1737682751245,4e-08,103450.0,103440.0,0.37537207]
[1737682751604,0.00100004,103450.0,103440.0,0.38237207]
[1737682751827,4e-08,103450.0,103440.0,0.37537207]
[1737682752187,0.00100004,103450.0,103440.0,0.38337207]
[1737682752385,0.00100004,103450.0,103440.0,0.38537207]
[1737682752556,0.00100004,103450.0,103440.0,0.37637207]
[1737682753898,0.00200004,103450.0,103440.0,0.38237207]
[1737682755554,0.00200004,103450.0,103440.0,0.39237207]
[1737682756337,0.00200004,103450.0,103440.0,0.38037207]
[1737682757270,0.00200004,103450.0,103440.0,0.37737207]
[1737682757271,0.00100004,103450.0,103440.0,0.37737207]
[1737682757577,4e-08,103450.0,103440.0,0.37737207]
[1737682757768,0.00100004,103450.0,103440.0,0.38637207]
[1737682759190,0.00100004,103450.0,103440.0,0.53637207]
[1737682760852,0.00100004,103450.0,103440.0,0.51162207]
[1737682764596,0.00100004,103450.0,103440.0,0.52162207]
[1737682764774,4e-08,103450.0,103440.0,0.52162207]
[1737682766591,4e-08,103450.0,103440.0,0.60806316]
[1737682767280,4e-08,103450.0,103440.0,0.60820556]
[1737682767431,8e-08,103450.0,103440.0,0.60820556]
[1737682770152,8e-08,103450.0,103440.0,0.5409951]
[1737682770861,8e-08,103450.0,103440.0,0.5309951]
[1737682771111,8e-08,103450.0,103440.0,0.5409951]
[1737682771362,8e-08,103450.0,103440.0,0.51176447]
[1737682775719,8e-08,103450.0,103440.0,0.52176447]
[1737682776822,8e-08,103450.0,103440.0,0.82176447]
[1737682777596,8e-08,103450.0,103440.0,0.84176447]
[1737682778503,8e-08,103450.0,103440.0,0.82976447]
[1737682778669,8e-08,103450.0,103440.0,0.83376447]
[1737682779845,8e-08,103450.0,103440.0,0.84276447]
[1737682782545,8e-08,103450.0,103440.0,0.54276447]
[1737682785569,8e-08,103450.0,103440.0,0.51276447]
[1737682785972,8e-08,103450.0,103440.0,0.25653564]
[1737682786201,0.08110008,103450.0,103440.0,0.24688224]
[1737682786402,0.08110008,103450.0,103440.0,0.39688224]
[1737682786930,0.08110008,103450.0,103440.0,0.39288224]
[1737682787143,0.08110008,103450.0,103440.0,0.38688224]
[1737682787350,0.08110008,103450.0,103440.0,0.39588224]
[1737682787969,8e-08,103450.0,103440.0,0.39588224]
[1737682789143,8e-08,103450.0,103440.0,0.39142724]
[1737682792901,8e-08,103450.0,103440.0,0.47817434]
[1737682797922,8e-08,103450.0,103440.0,0.52437434]
[1737682800733,8e-08,103450.0,103440.0,0.51812724]
[1737682800949,8e-08,103450.0,103440.0,0.82812724]
[1737682801580,8e-08,103450.0,103440.0,0.51812724]
[1737682802842,8e-08,103450.0,103440.0,0.47192724]
[1737682803042,8e-08,103450.0,103440.0,0.39142724]
[1737682804100,8e-08,103450.0,103440.0,0.24142724]
[1737682812136,8e-08,103450.0,103440.0,0.14407995]
[1737682812338,0.12300008,103450.0,103440.0,0.14407995]
[1737682812694,0.32300008,103450.0,103440.0,0.14407995]
[1737682813851,0.12300008,103450.0,103440.0,0.14407995]
[1737682814062,8e-08,103450.0,103440.0,0.24142724]
[1737682814282,8e-08,103450.0,103440.0,0.31862724]
[1737682815702,8e-08,103450.0,103440.0,0.24142724]
[1737682824737,8e-08,103450.0,103440.0,0.32112724]
[1737682837958,8e-08,103450.0,103440.0,0.24142724]
[1737682843913,8e-08,103450.0,103440.0,0.32002724]
[1737682846511,8e-08,103450.0,103440.0,0.33002724]
[1737682846921,8e-08,103450.0,103440.0,0.37562724]
[1737682849882,8e-08,103450.0,103440.0,0.36562724]
[1737682850085,8e-08,103450.0,103440.0,0.24142724]
[1737682861960,8e-08,103450.0,103440.0,0.36902724]
[1737682862441,8e-08,103450.0,103440.0,0.69802189]
[1737682864005,8e-08,103450.0,103440.0,0.84802189]
[1737682867546,1.2e-07,103460.0,103450.0,0.15]
[1737682867713,1.2e-07,103460.0,103450.0,0.38372157]
[1737682869034,1.2e-07,103460.0,103450.0,0.38972157]
[1737682869298,1.2e-07,103460.0,103450.0,0.38572157]
[1737682869702,1.2e-07,103460.0,103450.0,0.39472157]
[1737682869846,1.2e-07,103460.0,103450.0,0.39272157]
[1737682870214,1.2e-07,103460.0,103450.0,0.47502157]
[1737682873038,0.07630012,103460.0,103450.0,0.39572157]
[1737682874962,0.12380012,103460.0,103450.0,0.14837428]
[1737682875165,0.45110012,103460.0,103450.0,0.13872088]
[1737682875595,1.95110012,103460.0,103450.0,0.108665]
[1737682875943,2.15110012,103460.0,103450.0,0.13881064]
[1737682876318,2.15110012,103460.0,103450.0,0.258665]
[1737682876458,2.15110012,103460.0,103450.0,0.246665]
[1737682876659,2.15110012,103460.0,103450.0,0.253665]
[1737682877984,0.65110012,103460.0,103450.0,0.253665]
[1737682880818,0.32380012,103460.0,103450.0,0.253665]
[1737682884343,0.32380012,103460.0,103450.0,0.2538073]
[1737682886540,0.43140025,103460.0,103450.0,0.2538073]
[1737682888133,1.93140025,103460.0,103450.0,0.2538073]
[1737682889350,0.43140025,103460.0,103450.0,0.2538073]
[1737682894295,0.64840254,103460.0,103450.0,0.0071423]
[1737682894861,0.64840254,103460.0,103450.0,0.1571423]
[1737682895066,0.64840254,103460.0,103450.0,0.1561423]
[1737682895400,0.64840254,103460.0,103450.0,0.1511423]
[1737682895837,0.64840254,103460.0,103450.0,0.1571423]
[1737682896056,0.64840254,103460.0,103450.0,0.1511423]
[1737682896691,0.64840254,103460.0,103450.0,0.1501423]
[1737682897153,0.64940254,103460.0,103450.0,0.1501423]
[1737682898343,0.64940254,103460.0,103450.0,0.2468073]
[1737682899155,0.52974754,103460.0,103450.0,0.2468073]
[1737682899453,0.43240025,103460.0,103450.0,0.2468073]
[1737682903716,0.39545694,103460.0,103450.0,0.2468073]
[1737682905946,0.32480012,103460.0,103450.0,0.2468073]
[1737682906170,0.27730012,103460.0,103450.0,0.2468073]
[1737682907396,0.20100012,103460.0,103450.0,0.3234073]
[1737682907599,0.20100012,103460.0,103450.0,0.49777434]
[1737682907775,0.00100012,103460.0,103450.0,0.49777434]
[1737682908961,1.2e-07,103460.0,103450.0,0.50377434]
[1737682909384,1.2e-07,103460.0,103450.0,0.49877434]
[1737682909559,1.2e-07,103460.0,103450.0,0.50477434]
[1737682909762,1.2e-07,103460.0,103450.0,0.50377434]
[1737682910203,1.2e-07,103460.0,103450.0,0.50477434]
[1737682910761,1.2e-07,103460.0,103450.0,0.51450944]
[1737682914309,1.2e-07,103460.0,103450.0,0.60131205]
[1737682921087,1.2e-07,103460.0,103450.0,0.60031205]
[1737682921296,1.2e-07,103460.0,103450.0,0.59431205]
[1737682921506,1.2e-07,103460.0,103450.0,0.60531205]
[1737682923410,1.2e-07,103460.0,103450.0,0.45531205]
[1737682933450,1.2e-07,103460.0,103450.0,0.23446476]
[1737682933931,0.27690012,103460.0,103450.0,0.23446476]
[1737682935789,0.07690012,103460.0,103450.0,0.23446476]
[1737682936870,0.27690012,103460.0,103450.0,0.23446476]
[1737682937205,0.60420012,103460.0,103450.0,0.23446476]
[1737682939054,0.60420012,103460.0,103450.0,0.14766215]
[1737682941249,0.79516293,103460.0,103450.0,0.14766215]
[1737682941461,0.68263345,103460.0,103450.0,0.04126205]
[1737682941661,0.68263345,103460.0,103450.0,0.0111423]
[1737682941840,2.18263345,103460.0,103450.0,0.0111423]
[1737682942446,2.18263345,103460.0,103450.0,0.0021423]
[1737682942646,2.18263345,103460.0,103450.0,0.0031423]
[1737682945677,2.14908353,103460.0,103450.0,0.0031423]
[1737682946992,2.15908353,103460.0,103450.0,0.0001423]
[1737682947198,0.65908353,103460.0,103450.0,0.0001423]
[1737682949096,0.66982126,103460.0,103450.0,0.0001423]
[1737682950471,0.65982126,103460.0,103450.0,0.0001423]
[1737682951132,0.75716855,103460.0,103450.0,0.0001423]
[1737682951352,0.65982126,103460.0,103450.0,0.0001423]
[1737682952281,0.65882126,103460.0,103450.0,0.0001423]
[1737682952477,0.66082126,103460.0,103450.0,0.0001423]
[1737682952686,0.66182126,103460.0,103450.0,0.0001423]
[1737682953252,0.67182126,103460.0,103450.0,0.0001423]
[1737682957036,0.66182126,103460.0,103450.0,0.0001423]
[1737682957257,0.86684967,103460.0,103450.0,0.0001423]
[1737682957475,0.48272724,103450.0,103440.0,0.0001424]
[1737682957689,1.45467453,103450.0,103440.0,0.0001424]
[1737682957899,0.129683,103430.0,103420.0,0.0002423]
[1737682958119,0.45561141,103430.0,103420.0,0.0002423]
[1737682958738,0.45561141,103430.0,103390.0,0.0877615]
[1737682958739,0.1607,103410.0,103390.0,0.0877615]
[1737682958942,0.59012053,103400.0,103390.0,0.08680261]
[1737682959353,0.58012053,103400.0,103390.0,0.08680261]
[1737682959555,0.42628324,103390.0,103380.0,0.01694019]
[1737682959779,0.41594941,103390.0,103380.0,0.01694019]
[1737682959996,0.41599889,103390.0,103380.0,0.0159813]
[1737682960758,0.61599889,103390.0,103380.0,0.0189813]
[1737682962131,0.72368001,103390.0,103380.0,0.0199813]
[1737682962342,0.61599889,103390.0,103380.0,0.0199813]
[1737682963761,0.72368001,103390.0,103380.0,0.0199813]
[1737682964033,0.61599889,103390.0,103380.0,0.0199813]
[1737682964521,2.11599889,103390.0,103380.0,0.0199813]
[1737682965011,0.61599889,103390.0,103380.0,0.0199813]
[1737682965830,0.60599889,103390.0,103380.0,0.0199813]
[1737682966091,2.10599889,103390.0,103380.0,0.0199813]
[1737682966256,0.60599889,103390.0,103380.0,0.0199813]
[1737682966471,0.60599889,103390.0,103380.0,0.02317357]
[1737682966871,0.52479889,103390.0,103380.0,0.02317357]
[1737682967690,0.41711777,103390.0,103380.0,0.02317357]
[1737682968067,0.52479889,103390.0,103380.0,0.02317357]
[1737682972081,0.52479889,103390.0,103380.0,0.11990357]
[1737682972082,0.32039677,103390.0,103380.0,0.11990357]
[1737682972281,0.42807789,103390.0,103380.0,0.11990357]
[1737682972729,0.29739677,103390.0,103380.0,0.20050357]
[1737682973061,0.20004948,103390.0,103380.0,0.20050357]
[1737682973481,0.20004948,103390.0,103380.0,0.1973113]
[1737682973904,0.20004948,103390.0,103380.0,0.20050357]
[1737682975296,0.20004948,103390.0,103380.0,0.24690357]
[1737682975497,0.20004948,103390.0,103380.0,0.2437113]
[1737682975701,4.948e-05,103390.0,103380.0,0.2437113]
[1737682976498,0.00034852,103390.0,103380.0,0.27063484]
[1737682976865,0.00034852,103390.0,103380.0,0.278803]
[1737682977281,0.00034852,103390.0,103380.0,0.280803]
[1737682977629,0.00034852,103390.0,103380.0,0.2477113]
[1737682977831,0.20034852,103390.0,103380.0,0.2477113]
[1737682978604,0.20034852,103390.0,103380.0,0.25087946]
[1737682978805,0.20034852,103390.0,103380.0,0.260387]
[1737682982755,0.00034852,103390.0,103380.0,0.260387]
[1737682983607,0.00034852,103390.0,103380.0,0.410387]
[1737682984440,0.00034852,103390.0,103380.0,0.44037178]
[1737682984670,0.00034852,103390.0,103380.0,0.410387]
[1737682984847,0.00034852,103390.0,103380.0,0.44037158]
[1737682985221,0.00034852,103390.0,103380.0,0.53771887]
[1737682986572,0.00034852,103390.0,103380.0,0.52971887]
[1737682986925,0.00034852,103390.0,103380.0,0.54271887]
[1737682987140,0.00034852,103390.0,103380.0,0.53371887]
[1737682987338,0.00034852,103390.0,103380.0,0.52971887]
[1737682987537,0.00034852,103390.0,103380.0,0.53871887]
[1737682987774,0.00034852,103390.0,103380.0,0.54171887]
[1737682993775,0.00034852,103390.0,103380.0,0.53855071]
[1737682999197,0.00034852,103390.0,103380.0,0.44120342]
[1737682999377,0.00034852,103390.0,103380.0,0.31420342]
[1737682999796,0.00034852,103390.0,103380.0,0.13421884]
[1737683000005,0.00034852,103390.0,103380.0,0.28740079]
[1737683000427,0.07614852,103390.0,103380.0,0.13740079]
[1737683000847,0.27614852,103390.0,103380.0,0.28740079]
[1737683001249,0.27614852,103390.0,103380.0,0.13740079]
[1737683001679,0.07614852,103390.0,103380.0,0.28740079]
[1737683002773,0.27614852,103390.0,103380.0,0.28740079]
[1737683004136,0.27614852,103390.0,103380.0,0.19067079]
[1737683004341,0.57789793,103390.0,103380.0,0.18116325]
[1737683004543,2.40519793,103390.0,103380.0,0.18116325]
[1737683004679,2.29751681,103390.0,103380.0,0.18116325]
[1737683005074,2.20079581,103390.0,103380.0,0.03116325]
[1737683005287,2.29751681,103390.0,103380.0,0.01916325]
[1737683005490,2.20079581,103390.0,103380.0,0.11689325]
[1737683005749,2.29751681,103390.0,103380.0,0.02216325]
[1737683007143,2.20079581,103390.0,103380.0,0.11889325]
[1737683007699,0.70079581,103390.0,103380.0,0.02216325]
[1737683008071,0.79751681,103390.0,103380.0,0.02216325]
[1737683008499,0.52764852,103390.0,103380.0,0.11889325]
[1737683015800,0.52768852,103390.0,103380.0,0.11889325]
[1737683022853,0.32768852,103390.0,103380.0,0.11889325]
[1737683023789,0.52768852,103390.0,103380.0,0.11889325]
[1737683024854,0.52768852,103390.0,103380.0,0.16559325]
[1737683025205,0.52768852,103390.0,103380.0,0.24549325]
[1737683025599,0.32768852,103390.0,103380.0,0.24549325]
[1737683026219,0.00038852,103390.0,103380.0,0.24549325]
[1737683026666,0.20038852,103390.0,103380.0,0.24549325]
[1737683027297,0.20038852,103390.0,103380.0,0.27560411]
[1737683027724,0.00038852,103390.0,103380.0,0.27560411]
[1737683031457,0.00038852,103390.0,103380.0,0.3729514]
[1737683032420,0.00038852,103390.0,103380.0,0.3709514]
[1737683032813,0.00038852,103390.0,103380.0,0.3749514]
[1737683033011,0.00038852,103390.0,103380.0,0.3719514]
[1737683033527,0.00038852,103390.0,103380.0,0.3699514]
[1737683033847,0.00038852,103390.0,103380.0,0.3719514]
[1737683034216,0.00038852,103390.0,103380.0,0.3769514]
[1737683034460,0.2,103420.0,103410.0,0.096702]
[1737683034630,0.2,103420.0,103410.0,0.12681286]
[1737683034631,0.20004986,103420.0,103410.0,0.12681286]
[1737683034891,4.986e-05,103420.0,103410.0,0.12681286]
[1737683036067,4.986e-05,103420.0,103410.0,0.12881286]
[1737683039263,4.986e-05,103420.0,103410.0,0.098702]
[1737683040603,4.986e-05,103420.0,103410.0,0.12879312]
[1737683041444,4.986e-05,103420.0,103410.0,0.098702]
[1737683041746,4.986e-05,103420.0,103410.0,0.096702]
[1737683042153,4.986e-05,103420.0,103410.0,0.101702]
[1737683042621,4.986e-05,103420.0,103410.0,0.1115384]
[1737683042834,4.986e-05,103420.0,103410.0,0.1125384]
[1737683043048,0.32742398,103420.0,103410.0,0.006]
[1737683043684,0.62477127,103420.0,103410.0,0.005]
[1737683043901,0.62477127,103420.0,103390.0,0.37606155]
[1737683043902,1.5761,103410.0,103400.0,0.096711]
[1737683044136,2.01108112,103410.0,103390.0,0.56949055]
[1737683044348,2.10778412,103410.0,103390.0,0.57924314]
[1737683044572,0.10768112,103400.0,103390.0,0.19238614]
[1737683044775,0.40439212,103400.0,103390.0,0.08592055]
[1737683045201,0.45129212,103400.0,103390.0,0.08592055]
[1737683045409,0.52739212,103400.0,103390.0,0.09092055]
[1737683045629,0.62473941,103400.0,103390.0,0.09092055]
[1737683045866,0.62473941,103400.0,103390.0,0.08606295]
[1737683046614,0.62473941,103400.0,103390.0,0.08706295]
[1737683047543,0.62473941,103400.0,103390.0,0.09206295]
[1737683047761,0.64773941,103400.0,103390.0,0.09206295]
[1737683048798,0.64773941,103400.0,103390.0,0.0061424]
[1737683050259,0.64773941,103400.0,103390.0,0.0051424]
[1737683050624,0.64773941,103400.0,103390.0,0.0001424]
[1737683050883,0.64773941,103400.0,103390.0,0.0021424]
[1737683051083,0.62473941,103400.0,103390.0,0.0021424]
[1737683053687,0.62473941,103400.0,103390.0,0.0001424]
[1737683054497,2.12473941,103400.0,103390.0,0.0001424]
[1737683055463,2.12573941,103400.0,103390.0,0.0001424]
[1737683056862,0.64873941,103400.0,103390.0,0.0001424]
[1737683057811,0.62573941,103400.0,103390.0,0.0001424]
[1737683058264,2.36376782,103400.0,103390.0,0.0001424]
[1737683058493,0.76642053,103400.0,103390.0,0.0001424]
[1737683059706,0.76542053,103400.0,103390.0,0.0001424]
[1737683059891,0.66073941,103400.0,103390.0,0.0001424]
[1737683060171,0.76842053,103400.0,103390.0,0.0001424]
[1737683060381,0.66073941,103400.0,103390.0,0.0001424]
[1737683062044,0.65073941,103400.0,103390.0,0.0001424]
[1737683062890,0.64773941,103400.0,103390.0,0.0001424]
[1737683063274,0.64973941,103400.0,103390.0,0.0001424]
[1737683064483,0.64773941,103400.0,103390.0,0.0001424]
[1737683064715,0.64973941,103400.0,103390.0,0.0001424]
[1737683065178,0.64773941,103400.0,103390.0,0.0001424]
[1737683065645,0.66073941,103400.0,103390.0,0.0001424]
[1737683068290,0.76243941,103400.0,103390.0,0.0001424]
[1737683068514,0.66073941,103400.0,103390.0,0.0001424]
[1737683069201,0.66103845,103400.0,103390.0,0.0001424]
[1737683069404,0.77871957,103400.0,103390.0,0.0001424]
[1737683073665,1.65331957,103400.0,103390.0,0.0001424]
[1737683076918,1.51263845,103400.0,103390.0,0.0001424]
[1737683077320,1.53563845,103400.0,103390.0,0.0001424]
[1737683078399,1.63331957,103400.0,103390.0,0.0001424]
[1737683078959,1.52563845,103400.0,103390.0,0.0001424]
[1737683080490,0.10768112,103370.0,103360.0,0.05298709]
[1737683080690,0.20502841,103370.0,103360.0,0.05202796]
[1737683080892,0.20502841,103370.0,103360.0,0.0552785]
[1737683081713,0.29734729,103370.0,103360.0,0.05777485]
[1737683082410,0.2,103370.0,103360.0,0.20112385]
[1737683084044,0.2,103370.0,103360.0,0.21067735]
[1737683088800,1.80768112,103380.0,103370.0,0.096739]
[1737683089883,1.80768112,103380.0,103370.0,0.09996041]
[1737683090096,1.80868112,103380.0,103370.0,0.09996041]
[1737683091515,1.80868112,103380.0,103370.0,0.00322141]
[1737683091654,1.80868112,103380.0,103370.0,0.09996041]
[1737683092753,1.80897995,103380.0,103370.0,0.09996041]
[1737683093488,1.80897995,103380.0,103370.0,0.00322141]
[1737683093725,1.80897995,103380.0,103370.0,0.09996041]
[1737683097083,1.80897995,103380.0,103370.0,0.00322141]
[1737683097861,1.80897995,103380.0,103370.0,0.09996041]
[1737683098857,1.80897995,103380.0,103370.0,0.00322141]
[1737683099057,1.90570995,103380.0,103370.0,0.00322141]
[1737683099259,1.80897995,103380.0,103370.0,0.00322141]
[1737683099490,1.80897995,103380.0,103370.0,0.09996041]
[1737683100076,1.70129883,103380.0,103370.0,0.09996041]
[1737683100300,0.20129883,103380.0,103370.0,0.09996041]
[1737683100504,0.20129883,103380.0,103370.0,0.18136041]
[1737683100717,0.20129883,103380.0,103370.0,0.08462141]
[1737683101068,0.30897995,103380.0,103370.0,0.18136041]
[1737683103300,0.50305724,103380.0,103370.0,0.00322141]
[1737683104386,2.00305724,103380.0,103370.0,0.00322141]
[1737683105017,1.90632724,103380.0,103370.0,0.00322141]
[1737683105223,1.90632724,103380.0,103370.0,0.09996041]
[1737683105424,0.50305724,103380.0,103370.0,0.00322141]
[1737683105650,0.50305724,103380.0,103370.0,0.09996041]
[1737683105870,2.00305724,103380.0,103370.0,0.00322141]
[1737683106753,2.11073836,103380.0,103370.0,0.00322141]
[1737683106971,0.63373836,103380.0,103370.0,0.00322141]
[1737683109346,0.96103836,103380.0,103370.0,0.00322141]
[1737683112740,0.85335724,103380.0,103370.0,0.00322141]
[1737683113318,0.85335724,103380.0,103370.0,0.00418841]
[1737683113915,0.96103836,103380.0,103370.0,0.00418841]
[1737683114334,0.85335724,103380.0,103370.0,0.00418841]
[1737683115527,0.85335724,103380.0,103370.0,0.00433071]
[1737683116113,0.96103836,103380.0,103370.0,0.00433071]
[1737683116316,0.85335724,103380.0,103370.0,0.00433071]
[1737683116989,0.87256381,103380.0,103370.0,0.00433071]
[1737683117618,0.84956381,103380.0,103370.0,0.00433071]
[1737683127267,0.63627995,103380.0,103370.0,0.10106971]
[1737683127495,0.52859883,103380.0,103370.0,0.22496971]
[1737683127677,0.63627995,103380.0,103370.0,0.22496971]
[1737683128268,0.73300995,103380.0,103370.0,0.22496971]
[1737683129270,0.63627995,103380.0,103370.0,0.22496971]
[1737683129519,0.52859883,103380.0,103370.0,0.22496971]
[1737683130920,0.63627995,103380.0,103370.0,0.37496971]
[1737683131249,0.63779995,103380.0,103370.0,0.37496971]
[1737683133183,0.31049995,103380.0,103370.0,0.37496971]
[1737683133743,0.31049995,103380.0,103370.0,0.38462267]
[1737683134491,1.81049995,103380.0,103370.0,0.38462267]
[1737683135767,1.77358719,103380.0,103370.0,0.23462267]
[1737683136580,0.20281883,103380.0,103370.0,0.23462267]
[1737683136815,0.20281883,103380.0,103370.0,0.26480866]
[1737683137049,0.27358719,103380.0,103370.0,0.26480866]
[1737683137261,0.20281883,103380.0,103370.0,0.26480866]
[1737683137886,0.00281883,103380.0,103370.0,0.26480866]
[1737683138676,0.20281883,103380.0,103370.0,0.26480866]
[1737683140064,0.40735857,103380.0,103370.0,0.1584167]
[1737683140260,0.76684649,103380.0,103370.0,0.00433071]
[1737683140542,0.196939,103370.0,103360.0,0.00063865]
[1737683140739,0.38306677,103370.0,103340.0,0.00267319]
[1737683140943,0.31237748,103350.0,103340.0,0.00267319]
[1737683141149,0.40972477,103350.0,103340.0,0.00267319]
[1737683141371,0.76002477,103350.0,103340.0,0.00267319]
[1737683141798,0.96002477,103350.0,103340.0,0.00267319]
[1737683142209,0.93702477,103350.0,103340.0,0.00267319]
[1737683142539,0.96002477,103350.0,103340.0,0.00267319]
[1737683142950,0.97002477,103350.0,103340.0,0.00267319]
[1737683143161,0.96002477,103350.0,103340.0,0.00767319]
[1737683143591,0.96002477,103350.0,103340.0,0.01267319]
[1737683143791,0.96002477,103350.0,103340.0,0.01467319]
[1737683146978,0.96986324,103350.0,103340.0,0.00267319]
[1737683147172,0.97086324,103350.0,103340.0,0.00267319]
[1737683148060,0.99000087,103350.0,103340.0,0.00267319]
[1737683149981,0.69849965,103350.0,103340.0,0.00267319]
[1737683150182,0.66270087,103350.0,103340.0,0.00267319]
[1737683152513,0.53189113,103350.0,103340.0,0.00267319]
[1737683153593,0.52205266,103350.0,103340.0,0.00267319]
[1737683154658,2.02205266,103350.0,103340.0,0.00267319]
[1737683156039,2.1528624,103350.0,103340.0,0.00267319]
[1737683158363,2.1628624,103350.0,103340.0,0.00267319]
[1737683160729,0.88610969,103350.0,103340.0,0.00267319]
[1737683160934,0.7887624,103350.0,103340.0,0.00267319]
[1737683161776,0.7295624,103350.0,103340.0,0.00267319]
[1737683162003,0.6528624,103350.0,103340.0,0.00267319]
[1737683165777,0.54505266,103350.0,103340.0,0.09944019]
[1737683165991,2.02591503,103350.0,103340.0,0.09944019]
[1737683166397,2.02591503,103350.0,103340.0,0.17874019]
[1737683166806,2.02591503,103350.0,103340.0,0.08197319]
[1737683167040,2.02591503,103350.0,103340.0,0.00267319]
[1737683167453,2.02591503,103350.0,103340.0,0.09944019]
[1737683167661,1.80880974,103350.0,103340.0,0.09944019]
[1737683167879,1.80880974,103350.0,103340.0,0.17784019]
[1737683168090,1.90556774,103350.0,103340.0,0.17784019]
[1737683169101,1.80880974,103350.0,103340.0,0.17784019]
[1737683169515,1.80780974,103350.0,103340.0,0.17784019]
[1737683170015,0.30780974,103350.0,103340.0,0.17984019]
[1737683170632,0.2,103350.0,103340.0,0.17784019]
[1737683171387,0.201,103350.0,103340.0,0.17784019]
[1737683174501,1.701,103350.0,103340.0,0.17784019]
[1737683174907,0.201,103350.0,103340.0,0.17784019]
[1737683177152,0.201,103350.0,103340.0,0.22774019]
[1737683177392,0.201,103350.0,103340.0,0.26755645]
[1737683177601,0.201,103350.0,103340.0,0.36490374]
[1737683177812,0.001,103350.0,103340.0,0.36490374]
[1737683181251,0.001,103350.0,103340.0,0.26755645]
[1737683181460,0.001,103350.0,103340.0,0.23739359]
[1737683181786,0.001,103350.0,103340.0,0.22774019]